bitfinex/quotes_ETHUSD_20250813
["timestamp","ask_amount","ask_price","bid_price","bid_amount"]
[1755109212737,0.002,4724.2,4724.1,41.08388583]
[1755109212936,0.002,4724.2,4724.1,36.34657368]
[1755109213340,0.002,4724.2,4724.1,20.94292168]
[1755109213560,0.002,4724.2,4724.1,10.13315568]
[1755109213743,0.002,4724.2,4724.1,26.98649268]
[1755109213948,0.002,4724.2,4724.1,14.31219168]
[1755109214135,0.002,4724.2,4724.1,10.05470568]
[1755109214327,0.002,4724.2,4724.1,8.29203429]
[1755109214532,0.002,4724.2,4724.1,6.4186]
[1755109214866,0.002,4724.2,4724.1,6.4196]
[1755109215047,0.002,4724.2,4724.1,0.1056]
[1755109215252,0.002,4724.2,4724.1,3.4196]
[1755109215861,0.002,4724.2,4724.1,0.1056]
[1755109216159,0.002,4724.2,4724.1,7.9256]
[1755109216367,0.002,4724.2,4724.1,5.40516]
[1755109216527,0.002,4724.2,4724.1,8.71716]
[1755109217643,0.002,4724.2,4724.1,5.40516]
[1755109217962,0.002,4724.2,4724.1,8.72016]
[1755109218467,0.002,4724.2,4724.1,20.68537088]
[1755109218634,0.002,4724.2,4724.1,16.48057]
[1755109218827,0.002,4724.2,4724.1,8.72016]
[1755109219240,0.002,4724.2,4724.1,9.08835515]
[1755109219443,0.002,4724.2,4724.1,6.4216]
[1755109219829,0.002,4724.2,4724.1,3.1056]
[1755109220037,0.002,4724.2,4724.1,6.4206]
[1755109220654,0.002,4724.2,4724.1,3.1056]
[1755109220859,0.002,4724.2,4724.1,6.4196]
[1755109221162,0.002,4724.2,4724.1,3.1056]
[1755109221348,0.002,4724.2,4724.1,3.4196]
[1755109221552,0.002,4724.2,4724.1,14.1256]
[1755109223572,0.002,4724.2,4724.1,0.1056]
[1755109223779,2.0165,4724.2,4724.1,5.1756]
[1755109223943,2.0165,4724.2,4724.1,8.4886]
[1755109224146,2.0165,4724.2,4724.1,5.1756]
[1755109224487,2.0165,4724.2,4724.1,8.386]
[1755109224636,3.67305568,4724.2,4724.1,8.386]
[1755109225075,4.22305568,4724.2,4724.1,8.386]
[1755109225276,0.552,4724.2,4724.1,8.386]
[1755109226081,2.0165,4724.2,4724.1,8.386]
[1755109226639,2.0165,4724.2,4724.1,5.07]
[1755109226868,2.0165,4724.2,4724.1,8.386]
[1755109228353,1.4665,4724.2,4724.1,8.386]
[1755109228669,0.002,4724.2,4724.1,8.386]
[1755109229589,0.002,4724.2,4724.1,5.07]
[1755109229772,0.002,4724.2,4722.8,1.87519515]
[1755109229773,3.55,4724.1,4722.4,0.001]
[1755109230081,3.55,4724.1,4719.4,0.10364347]
[1755109230082,3.55,4722.4,4719.4,0.10364347]
[1755109230244,0.55,4721.2,4718.6,3.73363061]
[1755109230444,0.57647631,4721.2,4721.1,3.393]
[1755109230669,2.12157631,4721.2,4721.1,3.394]
[1755109230874,5.12157631,4721.2,4718.1,0.02]
[1755109231073,0.55,4720.3,4720.2,0.894]
[1755109231284,2.0951,4720.3,4720.2,0.894]
[1755109231474,0.55,4720.6,4720.2,5.964]
[1755109231670,24.144243,4720.4,4720.2,5.07]
[1755109231858,24.144243,4720.4,4720.3,3.374]
[1755109232054,25.78990858,4720.4,4720.2,5.07]
[1755109232251,25.78990858,4720.4,4720.3,3.375]
[1755109232456,27.33500858,4720.4,4720.3,3.375]
[1755109232657,3.74076558,4720.4,4720.3,3.375]
[1755109233279,3.74076558,4720.4,4720.3,3.374]
[1755109233454,3.74076558,4720.4,4720.2,5.07]
[1755109233656,2.75655568,4720.3,4720.2,5.07]
[1755109233877,4.30165568,4720.3,4720.2,8.443]
[1755109234291,4.40725568,4720.3,4720.2,5.07]
[1755109234492,4.40725568,4720.3,4720.2,8.443]
[1755109235569,2.75655568,4720.3,4720.2,8.44]
[1755109235768,0.6556,4720.3,4720.2,8.44]
[1755109236163,2.2007,4720.3,4720.2,5.07]
[1755109236492,2.835616,4720.3,4720.2,8.443]
[1755109236963,2.835616,4720.3,4720.2,5.07]
[1755109237165,0.55,4720.2,4719.5,2.636]
[1755109237365,0.91769149,4720.2,4720.1,5.093]
[1755109237565,0.55,4720.2,4720.1,5.093]
[1755109237982,0.1056,4720.3,4720.1,5.093]
[1755109238277,18.68213658,4720.2,4720.1,5.093]
[1755109238594,20.22723658,4720.2,4718.1,0.02]
[1755109238793,0.1056,4719.6,4718.1,0.02]
[1755109238964,0.6556,4719.2,4718.1,0.02]
[1755109239763,0.6556,4719.2,4719.1,1.946]
[1755109240179,0.6556,4719.2,4719.1,0.02]
[1755109240373,0.6556,4719.2,4719.1,3.397]
[1755109240864,0.6556,4719.2,4719.1,5.3896]
[1755109241194,0.1056,4719.2,4719.1,5.3896]
[1755109241402,0.1056,4719.5,4719.2,3.0]
[1755109241562,0.63485,4720.5,4719.3,1.9926]
[1755109241563,0.1056,4719.7,4719.3,1.9926]
[1755109241757,0.1056,4719.7,4719.4,3.375]
[1755109242081,0.55,4719.6,4719.4,3.375]
[1755109242260,0.55,4719.6,4719.1,7.734]
[1755109242461,0.55,4720.3,4719.1,7.734]
[1755109242704,0.55,4719.9,4719.2,3.375]
[1755109242884,0.1056,4719.3,4719.2,3.375]
[1755109243192,0.55,4719.3,4719.2,5.3676]
[1755109243360,0.02647856,4720.8,4719.2,5.3676]
[1755109243560,0.1056,4719.7,4719.2,5.3676]
[1755109243761,0.1056,4719.7,4719.3,1.9426]
[1755109244009,0.4728,4722.2,4719.3,4.9426]
[1755109244157,0.1056,4720.9,4719.6,0.1056]
[1755109244362,0.02647127,4722.1,4719.7,0.4529]
[1755109244604,0.26143713,4722.0,4721.3,5.076]
[1755109244762,0.1056,4721.4,4721.3,5.076]
[1755109245364,0.1056,4721.4,4721.3,8.454]
[1755109245559,0.1056,4721.4,4721.3,5.076]
[1755109245862,0.1056,4721.4,4721.3,8.9059]
[1755109246069,0.02,4722.4,4721.3,10.4456]
[1755109246278,0.1056,4721.9,4721.4,0.4529]
[1755109246571,0.1056,4721.9,4721.5,1.5397]
[1755109246899,0.1056,4721.9,4721.6,1.9926]
[1755109247061,0.1056,4721.9,4721.7,3.377]
[1755109247263,0.02,4722.4,4721.8,0.01173281]
[1755109247264,0.1056,4722.2,4721.8,0.01173281]
[1755109247481,0.1056,4722.2,4721.9,1.9926]
[1755109247661,0.1056,4722.2,4721.7,3.377]
[1755109247662,0.1056,4722.2,4722.0,1.9926]
[1755109248164,0.1056,4722.2,4722.1,1.9926]
[1755109248359,0.02,4722.4,4722.2,3.0]
[1755109248592,0.02,4722.4,4722.3,6.377]
[1755109248798,0.02,4722.4,4722.3,8.3696]
[1755109250577,0.02,4722.4,4722.3,3.0]
[1755109250776,0.02,4722.4,4722.3,6.376]
[1755109250973,0.02,4722.4,4722.3,8.3686]
[1755109251386,0.02,4722.4,4722.3,6.8289]
[1755109251589,0.02,4722.4,4722.3,14.5409]
[1755109252172,0.02,4722.4,4722.3,16.0806]
[1755109252572,0.02,4722.4,4722.3,16.1822]
[1755109253394,0.02,4722.4,4722.3,10.1722]
[1755109253595,0.02,4722.4,4722.3,8.1796]
[1755109253792,0.02,4722.4,4722.3,11.5496]
[1755109254000,0.02,4722.4,4722.3,13.5422]
[1755109254376,0.02,4722.4,4722.3,13.4366]
[1755109254724,0.02,4722.4,4722.3,8.4692]
[1755109255203,0.02,4722.4,4722.3,5.0982]
[1755109255369,0.02,4722.4,4722.3,8.4682]
[1755109255570,0.02,4722.4,4722.3,6.4746]
[1755109256118,0.02,4722.4,4722.3,3.1056]
[1755109256277,0.6756,4722.4,4722.3,3.368]
[1755109257007,0.55,4722.3,4721.5,0.1056]
[1755109257206,0.55,4722.1,4721.7,3.0]
[1755109257372,0.55,4722.1,4721.8,3.367]
[1755109257577,0.55,4722.1,4721.9,3.0]
[1755109257809,0.55,4722.1,4722.0,3.366]
[1755109258008,1.0228,4722.1,4722.0,3.366]
[1755109258209,1.38719,4722.1,4722.0,3.366]
[1755109259018,0.91439,4722.1,4722.0,3.366]
[1755109260385,0.6556,4722.1,4722.0,3.366]
[1755109260816,0.02,4722.4,4722.0,5.3532]
[1755109260993,0.02,4722.4,4722.1,4.9872]
[1755109261315,0.57,4722.4,4722.1,4.9872]
[1755109261524,0.57,4722.4,4722.2,7.711]
[1755109262117,0.57,4722.4,4722.3,3.0]
[1755109262479,0.02,4722.4,4722.3,4.9872]
[1755109262684,0.02,4722.4,4722.3,5.0928]
[1755109263517,0.02,4722.4,4722.3,6.36]
[1755109264719,0.02,4722.4,4722.3,8.3472]
[1755109266721,0.02,4722.4,4722.3,6.8255]
[1755109266915,0.02,4722.4,4722.3,8.3472]
[1755109267088,0.02,4722.4,4722.3,4.9872]
[1755109267291,0.02,4722.4,4722.3,8.3442]
[1755109268619,0.02,4722.4,4722.3,9.69648]
[1755109268927,0.02,4722.4,4722.3,9.80208]
[1755109269298,0.02,4722.4,4722.3,8.4498]
[1755109270195,0.02,4722.4,4722.3,6.9281]
[1755109270387,0.02,4722.4,4722.3,8.4498]
[1755109271427,0.02,4722.4,4722.3,11.0878]
[1755109271582,0.02,4722.4,4722.3,16.1608]
[1755109271783,0.02,4722.4,4722.3,18.36735568]
[1755109272525,0.02,4722.4,4722.3,15.72935568]
[1755109273491,0.022,4722.4,4722.3,15.72935568]
[1755109274023,0.022,4722.4,4722.3,15.88480055]
[1755109274737,0.022,4722.4,4722.3,39.55098133]
[1755109275107,0.022,4722.4,4722.3,34.46898133]
[1755109276638,0.002,4723.1,4722.3,34.46898133]
[1755109276842,0.002,4723.1,4723.0,0.1056]
[1755109277008,0.002,4723.1,4723.0,3.4496]
[1755109277204,0.002,4723.1,4723.0,3.4506]
[1755109278116,0.4372,4723.1,4723.0,0.1056]
[1755109278433,0.002,4723.1,4723.0,0.1056]
[1755109278746,0.002,4723.1,4723.0,3.4496]
[1755109280599,0.002,4723.1,4723.0,0.1056]
[1755109280802,0.002,4723.1,4723.0,6.4466]
[1755109281240,0.02,4723.4,4723.0,6.4466]
[1755109281241,1.5798,4723.7,4723.0,6.341]
[1755109281443,0.1056,4723.6,4723.2,3.0]
[1755109281737,0.1056,4723.6,4723.4,3.0]
[1755109282545,1.6854,4723.6,4723.5,11.411]
[1755109282842,0.1056,4723.6,4723.5,11.411]
[1755109283228,0.002,4724.9,4723.6,3.0]
[1755109283636,0.1076,4724.2,4723.6,3.0]
[1755109284230,0.55,4724.1,4723.5,5.072]
[1755109284443,0.55,4723.9,4723.5,5.072]
[1755109284629,0.55,4723.7,4723.6,3.337]
[1755109284832,2.2747,4723.7,4723.6,6.337]
[1755109285144,2.3803,4723.7,4723.6,6.337]
[1755109285345,2.2354,4723.7,4723.6,6.337]
[1755109285554,0.87914,4723.7,4723.6,3.0]
[1755109285714,0.55,4723.6,4723.5,5.072]
[1755109286048,2.2747,4723.6,4723.5,8.408]
[1755109286243,16.7747,4723.6,4723.5,8.408]
[1755109290116,16.6298,4723.6,4723.5,8.408]
[1755109290426,18.340184,4723.6,4723.5,5.072]
[1755109291010,18.485084,4723.6,4723.5,5.072]
[1755109291752,18.485084,4723.6,4723.5,8.402]
[1755109293816,16.760384,4723.6,4723.5,8.402]
[1755109295662,16.762384,4723.6,4723.5,8.402]
[1755109296363,18.257684,4723.6,4723.5,8.402]
[1755109296769,18.402584,4723.6,4723.5,8.402]
[1755109296973,18.402584,4723.6,4723.5,5.072]
[1755109297858,18.402584,4723.6,4722.3,0.001]
[1755109298181,0.6556,4722.4,4722.3,0.001]
[1755109298540,0.1056,4722.4,4722.3,3.324]
[1755109298780,0.1056,4722.4,4722.3,8.1636]
[1755109298945,0.1056,4722.7,4722.4,3.0]
[1755109299152,0.1056,4723.0,4722.5,1.8396]
[1755109299474,0.002,4723.6,4722.6,3.325]
[1755109299475,0.55,4722.9,4722.6,3.325]
[1755109299635,0.55,4723.5,4722.6,3.325]
[1755109299839,0.6556,4722.7,4722.6,3.325]
[1755109300277,0.6556,4722.7,4722.3,0.001]
[1755109300278,0.55,4722.6,4722.3,0.001]
[1755109300445,0.55,4722.6,4722.4,3.325]
[1755109300645,0.57646566,4723.1,4722.4,3.325]
[1755109300879,0.6556,4722.5,4722.4,3.325]
[1755109301280,0.55,4722.4,4722.3,0.001]
[1755109301454,0.57646959,4722.4,4722.3,8.398]
[1755109301650,0.55,4722.4,4722.3,8.398]
[1755109301961,0.1056,4722.5,4722.3,5.074]
[1755109302165,0.1056,4722.5,4722.3,8.398]
[1755109302558,0.1056,4722.5,4722.3,5.074]
[1755109302745,0.1056,4722.5,4722.4,3.323]
[1755109305301,0.1056,4722.5,4722.4,5.1626]
[1755109306399,0.1056,4722.5,4722.4,3.7537]
[1755109306566,0.55,4722.4,4722.3,5.074]
[1755109306980,0.55,4722.4,4722.3,8.391]
[1755109308913,2.1902,4722.4,4722.3,8.39]
[1755109309077,4.42322527,4722.4,4722.3,5.073]
[1755109309399,18.89675568,4722.4,4722.3,5.073]
[1755109309862,18.89675568,4722.4,4721.4,0.001]
[1755109310062,0.6556,4721.5,4721.4,0.001]
[1755109310267,0.6556,4721.5,4721.4,3.318]
[1755109310569,15.1556,4721.5,4721.4,3.318]
[1755109310770,16.67116,4721.5,4721.4,3.318]
[1755109311501,0.55,4721.4,4721.1,0.021]
[1755109311675,0.02647575,4721.3,4721.2,8.391]
[1755109311877,2.17737575,4721.3,4721.2,5.074]
[1755109312075,4.18458358,4721.3,4721.2,5.074]
[1755109312689,0.55,4721.2,4720.6,0.001]
[1755109312869,0.6556,4721.0,4720.6,0.001]
[1755109313070,0.6556,4721.0,4720.9,3.318]
[1755109314100,0.55,4720.9,4720.6,0.001]
[1755109314402,0.6556,4720.7,4720.6,0.001]
[1755109314703,15.1556,4720.7,4720.6,0.001]
[1755109315406,0.6556,4720.7,4720.6,0.001]
[1755109315781,0.1056,4720.7,4720.6,5.1586]
[1755109315928,0.6556,4720.7,4720.6,5.1586]
[1755109316924,0.1056,4720.7,4720.6,5.1586]
[1755109317102,0.1056,4720.7,4720.6,5.67446]
[1755109317297,0.1056,4720.7,4720.6,5.1586]
[1755109318303,0.02647351,4721.7,4720.6,3.7497]
[1755109318491,0.02647351,4721.7,4720.6,0.001]
[1755109318687,0.55,4721.5,4720.7,3.318]
[1755109318930,0.55,4721.3,4720.8,3.318]
[1755109319625,0.55,4721.3,4720.6,0.001]
[1755109319828,0.02647631,4721.2,4720.7,3.318]
[1755109319993,0.55,4721.3,4720.7,3.318]
[1755109320927,0.02647519,4721.4,4720.7,3.318]
[1755109321586,0.02647519,4721.4,4720.8,5.075]
[1755109321795,0.649,4721.3,4720.9,8.393]
[1755109321991,0.55,4721.1,4721.0,5.075]
[1755109322194,2.0861,4721.1,4721.0,5.075]
[1755109322498,2.0861,4721.1,4720.1,0.021]
[1755109322499,5.0861,4721.1,4720.1,0.021]
[1755109322717,0.55,4720.9,4720.1,0.021]
[1755109322899,0.55,4720.7,4720.1,0.021]
[1755109323099,0.02647968,4720.6,4720.2,3.318]
[1755109323411,0.02647968,4720.6,4719.3,0.001]
[1755109323412,0.55,4720.5,4719.3,0.001]
[1755109323610,0.0264808,4720.4,4719.3,0.001]
[1755109323811,0.55,4720.3,4719.3,0.001]
[1755109324114,1.5625808,4720.4,4719.3,0.001]
[1755109324115,0.55,4720.1,4719.3,0.001]
[1755109324322,0.02648305,4720.0,4719.3,0.001]
[1755109324696,0.02648305,4720.0,4719.4,3.318]
[1755109324914,0.02648305,4720.0,4719.3,0.001]
[1755109325327,24.21618078,4719.4,4719.3,0.001]
[1755109325530,29.42273646,4719.4,4719.3,0.001]
[1755109325698,30.95883646,4719.4,4719.3,0.001]
[1755109325899,31.15557097,4719.4,4719.3,0.001]
[1755109326099,31.15557179,4719.4,4719.3,0.001]
[1755109326325,31.15557179,4719.4,4719.1,0.02]
[1755109326326,0.55,4719.3,4719.1,0.02]
[1755109326495,0.02648754,4719.2,4719.1,0.02]
[1755109326709,0.02648754,4719.2,4719.1,3.338]
[1755109326930,0.02648754,4719.2,4718.1,0.02]
[1755109326931,0.55,4719.1,4718.1,0.02]
[1755109327138,0.55,4718.9,4718.1,0.02]
[1755109327439,0.02648978,4718.8,4718.1,0.02]
[1755109327738,3.55,4718.3,4718.1,0.02]
[1755109327940,2.15849315,4718.2,4718.1,0.02]
[1755109328106,2.35495761,4718.2,4718.1,0.02]
[1755109328303,3.55,4718.1,4717.8,0.001]
[1755109328636,0.6556,4717.9,4717.8,0.001]
[1755109328836,4.09605587,4717.9,4717.8,3.32]
[1755109329038,2.7045507,4717.9,4716.1,0.4693]
[1755109329242,2.15849483,4717.9,4716.1,0.4693]
[1755109329538,0.55,4717.7,4716.1,0.4693]
[1755109329735,0.02649652,4717.6,4716.1,0.4693]
[1755109330832,0.02649652,4717.6,4716.2,1.4114]
[1755109331037,0.02649652,4717.6,4716.3,3.7683]
[1755109331245,0.19608868,4718.6,4716.3,3.7683]
[1755109331547,1.80458014,4718.5,4716.4,6.9387]
[1755109331703,0.74608868,4718.4,4716.4,6.9387]
[1755109331904,0.02649259,4718.3,4716.5,1.8607]
[1755109332105,0.02649259,4718.3,4717.3,23.66618078]
[1755109332425,0.0264909,4718.6,4717.4,2.20655568]
[1755109332605,0.02649146,4718.5,4717.5,1.8607]
[1755109332801,3.0,4718.6,4716.7,0.4493]
[1755109333006,2.20938093,4718.5,4716.8,8.398]
[1755109333208,0.19578947,4718.4,4716.8,8.398]
[1755109333439,0.77228206,4718.3,4716.8,8.398]
[1755109333609,0.55,4718.1,4716.8,8.398]
[1755109333807,0.55,4717.9,4716.8,8.398]
[1755109334006,0.0264954,4717.8,4716.9,0.4493]
[1755109334206,0.0264954,4717.8,4717.0,3.335]
[1755109334438,0.5764954,4717.8,4717.0,3.335]
[1755109334649,0.55,4717.6,4717.0,3.335]
[1755109334848,0.55,4717.6,4716.8,0.4493]
[1755109335040,0.02649708,4717.5,4716.9,10.2757]
[1755109335236,0.55,4718.4,4716.9,10.2757]
[1755109335435,0.55,4718.2,4717.0,3.337]
[1755109335622,0.55,4718.0,4717.0,3.337]
[1755109335829,0.55,4717.8,4716.5,0.4493]
[1755109336035,0.55,4717.6,4716.6,8.415]
[1755109336246,0.55,4717.4,4716.6,8.415]
[1755109336560,0.0264982,4717.3,4716.6,5.078]
[1755109336757,0.0264982,4717.3,4716.7,8.414]
[1755109336923,0.55,4717.1,4716.7,8.414]
[1755109337118,0.55,4717.8,4716.8,1.8607]
[1755109337343,0.55,4717.6,4716.8,1.8607]
[1755109337551,0.55,4717.4,4716.8,1.8607]
[1755109337749,0.55,4717.2,4716.8,1.8607]
[1755109337956,0.55,4717.6,4716.9,1.8607]
[1755109338125,0.55,4717.4,4716.9,1.8607]
[1755109338331,0.55,4717.2,4717.0,1.8607]
[1755109338527,0.57649483,4717.9,4717.1,1.8607]
[1755109338722,0.55,4717.7,4717.1,1.8607]
[1755109338922,0.1056,4717.2,4717.1,1.8607]
[1755109339563,0.57649315,4718.2,4717.1,1.8607]
[1755109339761,0.1056,4717.2,4717.1,1.8607]
[1755109339927,0.30158134,4717.2,4717.1,1.8607]
[1755109340127,0.30158471,4717.2,4717.1,1.8607]
[1755109340529,0.6556,4717.2,4717.1,1.8607]
[1755109340745,0.55,4717.1,4716.7,5.078]
[1755109341062,0.67056,4717.1,4716.8,3.333]
[1755109341363,0.57649259,4718.3,4716.8,5.1937]
[1755109341564,0.6564,4716.9,4716.8,5.1937]
[1755109342066,0.85249754,4716.9,4716.8,5.1937]
[1755109342272,0.85251929,4716.9,4716.8,5.1937]
[1755109342873,0.30251929,4716.9,4716.8,5.1937]
[1755109343243,0.30251929,4716.9,4716.8,3.333]
[1755109343573,0.85251929,4716.9,4716.8,5.08]
[1755109343974,0.85256821,4716.9,4716.8,5.08]
[1755109344354,0.55,4716.8,4714.1,0.02]
[1755109344674,0.6564,4715.2,4715.1,0.4693]
[1755109344871,0.6564,4715.2,4715.1,3.8043]
[1755109345038,0.6564,4715.2,4715.1,3.355]
[1755109345236,0.55,4715.1,4714.6,1.4114]
[1755109345552,0.55,4715.1,4714.1,0.02]
[1755109345755,0.55,4715.1,4715.0,2.4114]
[1755109345936,0.1064,4715.2,4715.0,2.3614]
[1755109346279,0.1064,4715.1,4715.0,0.95]
[1755109346487,0.1064,4715.1,4711.4,0.1041756]
[1755109346488,0.55,4715.0,4711.4,0.1041756]
[1755109346683,0.6274263,4716.7,4711.4,0.1041756]
[1755109346684,0.55,4714.8,4713.2,1.4114]
[1755109346878,0.6564,4713.3,4713.2,1.8634]
[1755109347287,0.55,4713.2,4711.0,18.15375394]
[1755109347439,3.104176,4714.9,4712.5,18.15375394]
[1755109347440,0.55643023,4714.9,4712.5,18.15375394]
[1755109347639,0.55,4714.7,4711.3,0.10744802]
[1755109347877,0.55,4714.5,4712.3,3.0]
[1755109348087,0.55,4714.3,4712.4,1.8607]
[1755109348285,0.22270071,4714.2,4712.4,1.8607]
[1755109348592,0.74618508,4714.1,4712.5,3.349]
[1755109348784,0.55,4713.9,4712.6,3.349]
[1755109348949,0.55,4713.9,4710.1,18.76563794]
[1755109348950,0.55,4713.7,4712.7,3.35]
[1755109349284,0.55,4713.5,4712.7,3.35]
[1755109349611,0.19618508,4713.4,4712.8,1.8607]
[1755109349780,0.19618508,4713.3,4712.9,1.8658]
[1755109349986,0.19618508,4713.3,4712.7,3.35]
[1755109349987,0.19618508,4713.2,4713.0,1.8658]
[1755109350210,0.45216618,4715.2,4713.0,1.8658]
[1755109350211,0.02651113,4715.0,4713.1,1.8658]
[1755109350416,0.19621199,4714.9,4713.2,1.87762198]
[1755109350567,1.20395941,4716.3,4713.2,1.87762198]
[1755109350568,0.19621199,4714.8,4713.3,1.8658]
[1755109350767,0.19621199,4714.7,4713.4,1.8658]
[1755109350967,0.04650888,4715.4,4713.5,20.01955394]
[1755109350968,0.19621199,4714.6,4713.5,20.01955394]
[1755109351173,0.19621199,4714.5,4713.6,6.97542786]
[1755109351383,0.04650888,4715.4,4713.6,6.97542786]
[1755109351384,0.19621199,4714.4,4713.7,5.2198]
[1755109351672,0.19634458,4714.3,4713.8,6.9468]
[1755109351868,0.04650888,4715.4,4713.9,5.2188]
[1755109351869,0.19634289,4714.2,4713.9,5.2188]
[1755109352106,0.19634289,4714.1,4714.0,1.8658]
[1755109352617,0.02,4715.4,4714.0,4.87761998]
[1755109352914,0.02,4715.4,4714.1,1.87761404]
[1755109353067,0.19647406,4715.3,4714.1,5.2188]
[1755109353389,0.22298407,4715.2,4714.2,5.2188]
[1755109353600,0.19662572,4715.1,4714.3,3.353]
[1755109353799,0.02651001,4715.2,4714.4,3.353]
[1755109353800,0.55,4714.9,4714.4,3.353]
[1755109354116,0.55,4714.7,4714.5,1.8658]
[1755109354405,0.19662572,4714.6,4714.0,0.4566]
[1755109354706,0.74662572,4714.5,4714.1,8.433]
[1755109354911,0.55,4714.3,4714.1,5.081]
[1755109355075,0.74662572,4714.2,4714.1,5.081]
[1755109355471,0.74682145,4714.2,4714.1,8.433]
[1755109355670,0.74682145,4714.2,4714.1,10.2988]
[1755109355886,0.74682145,4714.2,4714.1,8.433]
[1755109356569,0.55,4714.1,4713.7,2.642]
[1755109356779,0.74682145,4714.2,4713.7,2.642]
[1755109356780,0.55,4713.9,4713.8,5.082]
[1755109357010,0.74682145,4713.9,4713.8,10.2978]
[1755109357405,0.74682145,4713.9,4713.8,5.082]
[1755109357706,0.74682145,4713.9,4713.8,8.432]
[1755109357707,0.85322145,4713.9,4713.8,8.432]
[1755109358079,0.85322145,4713.9,4713.8,10.2978]
[1755109358408,0.85322145,4713.9,4713.8,5.082]
[1755109358610,0.74682145,4713.9,4712.6,0.4566]
[1755109358774,1.00216618,4714.2,4713.8,5.082]
[1755109358980,3.9906,4714.0,4712.6,0.4566]
[1755109359180,0.55,4713.8,4712.7,3.349]
[1755109359409,0.64901133,4713.9,4712.7,3.349]
[1755109359410,0.55,4713.6,4712.7,3.349]
[1755109359612,0.55,4713.4,4712.7,3.349]
[1755109359781,0.55,4713.2,4712.6,0.4566]
[1755109360107,0.55,4713.0,4712.7,3.349]
[1755109360306,0.19684515,4712.9,4712.7,3.349]
[1755109360515,0.55,4714.1,4712.8,1.4092]
[1755109360837,0.55,4713.9,4712.9,0.4566]
[1755109361009,0.55,4713.7,4712.9,0.4566]
[1755109361211,0.55,4713.5,4712.9,0.4566]
[1755109361386,0.11647338,4714.0,4713.0,1.4092]
[1755109361387,0.19666126,4713.4,4713.0,1.4092]
[1755109361576,0.19666126,4713.3,4713.1,1.8658]
[1755109361778,0.19666126,4713.2,4713.0,5.083]
[1755109361988,0.19666126,4713.1,4713.0,5.083]
[1755109362209,0.1966287,4713.1,4713.0,5.083]
[1755109362382,0.1966287,4713.1,4713.0,6.9488]
[1755109362712,0.19666823,4713.1,4713.0,10.2968]
[1755109363898,0.19666823,4713.1,4713.0,10.2948]
[1755109365215,0.19670953,4713.1,4713.0,10.2948]
[1755109365782,0.19670953,4713.1,4713.0,1.8658]
[1755109366124,0.19670953,4713.1,4713.0,10.2928]
[1755109366289,0.02651282,4714.7,4713.0,6.9488]
[1755109366487,0.55,4714.5,4713.1,3.343]
[1755109366820,0.55,4714.5,4713.2,3.343]
[1755109366821,0.55,4714.3,4713.2,3.343]
[1755109367007,0.55,4714.1,4713.2,3.343]
[1755109367210,0.55,4713.9,4713.3,3.343]
[1755109367394,0.55,4713.7,4713.3,3.343]
[1755109367596,0.55,4713.5,4713.3,3.343]
[1755109367824,0.19685571,4713.4,4713.0,5.083]
[1755109368028,0.19685571,4713.3,4713.1,3.343]
[1755109368228,0.11874557,4713.3,4713.2,5.083]
[1755109368387,0.31565761,4713.3,4713.2,8.425]
[1755109368592,0.42205761,4713.3,4713.2,8.425]
[1755109369014,0.42205761,4713.3,4713.2,5.083]
[1755109369403,0.42205761,4713.3,4713.2,8.423]
[1755109369723,0.85331204,4713.3,4713.2,8.423]
[1755109369921,0.85331204,4713.3,4712.3,2.643]
[1755109369922,0.55,4713.2,4712.3,2.643]
[1755109370092,0.1064,4712.6,4712.4,8.426]
[1755109370287,0.19705334,4712.5,4712.4,8.426]
[1755109370834,0.19705334,4712.5,4712.4,5.083]
[1755109370995,1.67739867,4712.5,4712.4,5.083]
[1755109371432,1.48034533,4712.5,4712.4,5.083]
[1755109371738,1.67753657,4712.5,4712.4,10.2898]
[1755109372175,1.67753657,4712.5,4712.4,1.8658]
[1755109372524,1.67753657,4712.5,4712.4,8.423]
[1755109373550,0.19719124,4712.5,4712.1,0.02]
[1755109373743,0.576519,4713.6,4712.4,8.423]
[1755109374050,0.1064,4712.5,4712.4,8.423]
[1755109374253,0.8538545,4712.5,4712.4,5.084]
[1755109374433,0.8538545,4712.5,4712.4,8.422]
[1755109375961,0.8538545,4712.5,4712.4,8.8776]
[1755109376162,0.8538545,4712.5,4712.4,10.2868]
[1755109376356,0.8538545,4712.5,4712.4,8.421]
[1755109377155,0.8538545,4712.5,4712.4,5.084]
[1755109377359,15.3538545,4712.5,4712.4,8.422]
[1755109377530,16.88923995,4712.5,4712.4,8.422]
[1755109377865,16.33923995,4712.5,4712.4,8.422]
[1755109378162,14.8038545,4712.5,4712.4,10.2878]
[1755109378860,14.6064,4712.5,4712.4,10.2878]
[1755109379157,0.1064,4712.5,4712.4,10.2878]
[1755109380329,0.1064,4712.5,4712.4,10.3158]